fUSD/lending_fUSD_20240729
["ID","MTS","AMOUNT","RATE_DAILY","PERIOD"]
[333512727,1722222644853,-2797.32174005,0.00011,2]
[333512728,1722222644866,-1188.08120792,0.00011,2]
[333512729,1722222644880,-2054.96527202,0.00011,2]
[333512730,1722222644893,-306.8441376,0.00011,2]
[333512731,1722222644958,-500.0,0.00010958,2]
[333512732,1722222644967,-35770.24460164,0.00011,2]
[333512733,1722222644977,-23641.96435738,0.00011,2]
[333512734,1722222644989,-206837.38474711,0.00011,2]
[333512735,1722222644999,-7140.0,0.00011,2]
[333512736,1722222645010,-938.2351578,0.00011,2]
[333512737,1722222645021,-536.51161562,0.00011,2]
[333512738,1722222645032,-8317.91029323,0.00011,2]
[333512739,1722222645052,-500.0,0.00010958,2]
[333512740,1722222645061,-63.21797897,0.00011,2]
[333512741,1722222645073,-60623.36091469,0.00011,2]
[333512742,1722222645085,-143413.50703734,0.00011,2]
[333512743,1722222645283,-294.14994472,0.00011,2]
[333512775,1722222645996,-179.5563694,0.00010999,2]
[333512777,1722222646006,-344511.90738992,0.00011,2]
[333512779,1722222646017,-518.7,0.00011,2]
[333512781,1722222646028,-1675.2,0.00011,2]
[333512788,1722222646268,-1927.17,0.00011,2]
[333512789,1722222646280,-6820.37072697,0.00011,2]
[333512790,1722222646291,-8373.10115756,0.00011,2]
[333512791,1722222646303,-6991.7,0.00011,2]
[333512792,1722222646314,-22537.92294715,0.00011,2]
[333512793,1722222646325,-6722.5665,0.00011,2]
[333512794,1722222646338,-2499.18517507,0.00011,2]
[333512795,1722222676249,37898.6739072,6.781e-05,7]
[333512796,1722222715048,411.5203761,6.781e-05,2]
[333512797,1722222716575,1222.54442824,6.781e-05,2]
[333512798,1722222716995,304.69251132,6.781e-05,2]
[333512799,1722222725489,750.0,6.781e-05,2]
[333512800,1722222725999,872.30967165,6.781e-05,2]
[333512801,1722222731809,1039.50393935,6.781e-05,2]
[333512802,1722222801500,160.08219994,6.781e-05,2]
[333512803,1722222804059,244.656969,6.781e-05,2]
[333512804,1722222815581,1222.54442824,6.781e-05,2]
[333512805,1722222874509,683.1783509,6.781e-05,2]
[333512806,1722222913787,1222.71767063,6.781e-05,2]
[333512809,1722223157223,11655.0,0.0001789,120]
[333512810,1722223157687,11655.0,0.0001788,120]
[333512811,1722223158153,11655.0,0.0001787,120]
[333512812,1722223159195,11655.0,0.0001789,120]
[333512813,1722223159669,11655.0,0.0001788,120]
[333512814,1722223160129,11655.0,0.0001787,120]
[333512815,1722223160597,11655.0,0.0001789,120]
[333512816,1722223161122,11655.0,0.0001788,120]
[333512817,1722223161655,11655.0,0.0001789,120]
[333512818,1722223162142,11662.13,0.0001788,120]
[333512913,1722223831961,-171.1,7.707e-05,2]
[333512915,1722223831971,-489.0,8.218e-05,2]
[333512916,1722223831981,-440.33351892,8.218e-05,2]
[333512917,1722223831991,-440.3335189,8.219e-05,2]
[333512918,1722223832000,-440.3335189,8.219e-05,2]
[333512919,1722223832010,-351.65,8.219e-05,2]
[333512920,1722223832019,-360.0,9.634e-05,2]
[333512921,1722223832029,-1323.3,9.654e-05,2]
[333512922,1722223832039,-640.0,9.67e-05,2]
[333512923,1722223832048,-800.0,9.9e-05,3]
[333512924,1722223832057,-1600.0,0.0001,3]
[333512925,1722223832067,-216.43995979,0.0001,2]
[333512926,1722223832076,-300.0,0.00010099,2]
[333512927,1722223832085,-614.76,0.000101,2]
[333512928,1722223832095,-2500.0,0.000101,3]
[333512929,1722223832305,-3300.0,0.000102,3]
[333512930,1722223832315,-4200.0,0.000103,3]
[333512931,1722223832325,-1743.90949909,0.00010357,2]
[333512932,1722223832335,-800.0,0.000104,3]
[333512933,1722223832345,-351.65,0.00010469,2]
[333512934,1722223832354,-800.0,0.000105,3]
[333512935,1722223832364,-5218.0,0.00010575,2]
[333512936,1722223832373,-800.0,0.000106,3]
[333512937,1722223832382,-800.0,0.000107,3]
[333512938,1722223832393,-2599.6151186,0.00010797,5]
[333512939,1722223832402,-3444.6658,0.00010799,2]
[333512940,1722223832411,-2991.055,0.00010799,2]
[333512941,1722223832420,-233.7015,0.00010799,2]
[333512942,1722223832430,-150.0,0.00010799,2]
[333512943,1722223832439,-1216.0,0.000108,3]
[333512944,1722223832448,-714.00314817,0.00010835,2]
[333512945,1722223832458,-360.0,0.00010838,2]
[333512946,1722223832468,-99256.10281188,0.00010847,2]
[333512947,1722223832481,-886.99,0.00010847,2]
[333512948,1722223832493,-12395.11,0.00010847,2]
[333512949,1722223832504,-1038.62701435,0.00010847,2]
[333512950,1722223832518,-603.50800002,0.00010847,2]
[333512951,1722223832529,-584.59550704,0.00010847,2]
[333512952,1722223832540,-621.32544341,0.00010847,2]
[333512953,1722223832551,-16641.34046384,0.00010847,2]
[333512959,1722223837952,-2925.00078918,0.00010847,2]
[333512960,1722223837961,-22764.81179425,0.00010854,2]
[333512961,1722223837973,-141.78296548,0.00010854,2]
[333512962,1722223837984,-4526.32149078,0.00010855,2]
[333512963,1722223837994,-65844.44842862,0.00010857,2]
[333512964,1722223838077,-987.54270914,0.00010857,2]
[333512965,1722223838089,-68120.60889196,0.00010857,2]
[333512966,1722223838100,-4526.32149078,0.00010858,2]
[333512967,1722223838109,-372.94356378,0.00010859,2]
[333512968,1722223838118,-4526.32149078,0.00010864,2]
[333512969,1722223838128,-22906.59475973,0.00010874,2]
[333512970,1722223838137,-68031.73023694,0.00010875,2]
[333512971,1722223838149,-529.12011047,0.00010875,2]
[333512972,1722223838212,-327.14969999,0.00010875,2]
[333512973,1722223838223,-1138.18072319,0.00010875,2]
[333512974,1722223838237,-3371.36931145,0.00010875,2]
[333512978,1722223839994,-310.75694787,0.00010875,2]
[333512980,1722223840007,-1062.21988216,0.00010875,2]
[333512981,1722223840018,-1515.12717997,0.00010875,2]
[333512983,1722223840030,-58666.94593768,0.00010875,2]
[333512985,1722223840039,-372.94356378,0.00010876,2]
[333512987,1722223840049,-372.94356378,0.00010878,2]
[333512989,1722223840058,-640.0,0.00010878,2]
[333512991,1722223840068,-22906.59475973,0.00010879,2]
[333512993,1722223840077,-5554.52983381,0.0001088,2]
[333513001,1722223841746,-1209.54095137,0.0001088,2]
[333513002,1722223841878,-9114.0697083,0.0001088,2]
[333513003,1722223841889,-2048.915,0.00010883,2]
[333513004,1722223841898,-21772.3353027,0.00010899,2]
[333513005,1722223841995,-474.621015,0.00010899,2]
[333513021,1722223842941,-34809.8007692,0.00010899,2]
[333513023,1722223843293,-11624.454025,0.00010899,2]
[333513024,1722223843305,-1825.15428695,0.00010899,2]
[333513025,1722223843315,-62650.97776102,0.00010899,2]
[333513282,1722223846066,-302.790542,0.0001082,2]
[333513284,1722223846076,-150.384,0.00010871,2]
[333513286,1722223846086,-7855.38763775,0.00010899,2]
[333513288,1722223846096,-70506.36539877,0.00010899,2]
[333513290,1722223846105,-20979.12000611,0.00010899,2]
[333513293,1722223846115,-70506.36539877,0.00010899,2]
[333513294,1722223846124,-17218.93162254,0.00010899,2]
[333513356,1722223846722,-3760.18838349,0.00010899,2]
[333513357,1722223846732,-70506.36539877,0.00010899,2]
[333513359,1722223846744,-20979.12000603,0.00010899,2]
[333513362,1722223846754,-36188.17269598,0.00010899,2]
[333513364,1722223846769,-846.47514523,0.00010899,2]
[333513367,1722223846780,-1891.09879631,0.00010899,2]
[333513369,1722223846791,-6368.78331178,0.00010899,2]
[333513371,1722223846803,-3217.45,0.00010899,2]
[333515221,1722224161896,20000.0,0.0002,90]
[333515222,1722224188311,20000.0,0.00017,60]
[333515223,1722224303242,35975.65969659,0.00015,30]
[333515313,1722225031983,-438.47,8.219e-05,2]
[333515316,1722225031992,-300.0,9.32e-05,2]
[333515317,1722225032001,-26.82022052,9.321e-05,2]
[333515319,1722225032039,-650.01339646,9.321e-05,2]
[333515320,1722225032050,-6462.05638302,9.321e-05,2]
[333515321,1722225032059,-2819.34,9.321e-05,2]
[333515322,1722225032068,-1222.99,9.434e-05,2]
[333515323,1722225032077,-188.86976188,9.496e-05,2]
[333515324,1722225032087,-250.0,9.496e-05,2]
[333515325,1722225032096,-877.36,9.54e-05,2]
[333515326,1722225032106,-200.0,9.54e-05,2]
[333515327,1722225032115,-216.0,9.565e-05,2]
[333515328,1722225032124,-784.0,9.708e-05,2]
[333515329,1722225032133,-2805.9255,9.8e-05,2]
[333515330,1722225032142,-547.6933049,9.9e-05,3]
[333515331,1722225032157,-689.30241408,9.9e-05,3]
[333515332,1722225032168,-63.00428102,9.9e-05,3]
[333515333,1722225032178,-220.38714709,0.0001,2]
[333515334,1722225032202,-1029.61285291,0.0001,2]
[333515335,1722225032211,-2700.0,0.0001,3]
[333515336,1722225032220,-150.0,0.00010096,2]
[333515337,1722225032229,-20000.0,0.00010097,2]
[333515338,1722225032237,-499.99,0.00010097,2]
[333515339,1722225032247,-4100.0,0.000101,3]
[333515340,1722225032256,-713.6,0.00010192,2]
[333515341,1722225032265,-5500.0,0.000102,3]
[333515342,1722225032274,-420.0,0.00010252,2]
[333515343,1722225032283,-6900.0,0.000103,3]
[333515344,1722225032292,-1723.6675,0.00010376,2]
[333515345,1722225032301,-1300.0,0.000104,3]
[333515346,1722225032310,-438.47,0.00010457,2]
[333515347,1722225032319,-11157.32124238,0.00010466,2]
[333515348,1722225032328,-401.520773,0.00010476,2]
[333515349,1722225032338,-58726.559461,0.00010476,2]
[333515350,1722225032347,-5821.173,0.00010476,2]
[333515351,1722225032355,-1300.0,0.000105,3]
[333515352,1722225032364,-7439.0679,0.00010507,2]
[333515353,1722225032374,-1300.0,0.000106,3]
[333515354,1722225032383,-401.520773,0.00010607,2]
[333515355,1722225032392,-58726.559461,0.00010607,2]
[333515356,1722225032401,-2500.0,0.00010638,2]
[333515357,1722225032411,-212.9888,0.00010647,2]
[333515358,1722225032420,-827.8092,0.00010699,2]
[333515360,1722225032430,-1300.0,0.000107,3]
[333515362,1722225032439,-401.520773,0.00010738,2]
[333515364,1722225032450,-58726.559461,0.00010738,2]
[333515366,1722225032458,-1262.7984,0.00010747,2]
[333515368,1722225032468,-14126.7349,0.00010747,2]
[333515370,1722225032477,-286.8482,0.00010753,2]
[333515371,1722225032487,-311.569,0.00010753,2]
[333515372,1722225032496,-216.0,0.00010761,2]
[333515373,1722225032506,-354.8204058,0.00010773,2]
[333515374,1722225032516,-2656.9875,0.00010799,2]
[333515375,1722225032526,-46243.5904,0.00010799,2]
[333515376,1722225032536,-2215.1856,0.00010799,2]
[333515377,1722225032546,-764.5173,0.00010799,2]
[333515378,1722225032556,-4307.0498,0.00010799,2]
[333515379,1722225032567,-168.5415,0.00010799,2]
[333515380,1722225032576,-2846.7415,0.00010799,2]
[333515381,1722225032585,-2611.2492,0.00010799,2]
[333515382,1722225032594,-357.6128,0.00010799,2]
[333515383,1722225032605,-705.5862,0.00010799,2]
[333515384,1722225032614,-170.09951015,0.000108,2]
[333515385,1722225032623,-2078.0,0.000108,3]
[333515386,1722225032631,-500.0,0.00010854,2]
[333515387,1722225032640,-176.11869305,0.00010856,2]
[333515388,1722225032649,-930.04977166,0.00010856,2]
[333515389,1722225032658,-401.520773,0.00010869,2]
[333515390,1722225032667,-58726.559461,0.00010869,2]
[333515391,1722225032676,-176.11869305,0.00010873,2]
[333515392,1722225032685,-1581.0,0.00010873,2]
[333515393,1722225032696,-1925.0,0.00010873,2]
[333515394,1722225032704,-362.0,0.00010873,2]
[333515395,1722225032713,-1255.0,0.00010873,2]
[333515396,1722225032722,-445.0,0.00010873,2]
[333515397,1722225032731,-453.752,0.00010873,2]
[333515398,1722225032740,-626.953,0.00010873,2]
[333515399,1722225032749,-817.811,0.00010873,2]
[333515400,1722225032758,-151.97,0.00010873,2]
[333515401,1722225032767,-550.0,0.00010873,2]
[333515402,1722225032777,-2383.0,0.00010873,2]
[333515403,1722225032786,-2000.869,0.00010873,2]
[333515404,1722225032795,-3307.689,0.00010873,2]
[333515405,1722225032804,-544.659,0.00010873,2]
[333515406,1722225032813,-410.0643,0.00010877,2]
[333515407,1722225032822,-930.04977166,0.00010878,2]
[333515408,1722225032832,-176.11869305,0.00010882,2]
[333515409,1722225032841,-930.04977166,0.00010889,2]
[333515410,1722225032850,-176.94035326,0.00010898,2]
[333515411,1722225032859,-45926.72343244,0.00010899,2]
[333515412,1722225032868,-45926.72343243,0.00010899,2]
[333515413,1722225032877,-45926.72343243,0.00010899,2]
[333515414,1722225032886,-45926.72343243,0.00010899,2]
[333515415,1722225032896,-45926.72343243,0.00010899,2]
[333515416,1722225033123,-45926.72343243,0.00010899,2]
[333515417,1722225033133,-45926.72343243,0.00010899,2]
[333515418,1722225033142,-45926.72343243,0.00010899,2]
[333515419,1722225033151,-45926.72343243,0.00010899,2]
[333515420,1722225033160,-14685.38400423,0.00010899,2]
[333515421,1722225033169,-14685.38400422,0.00010899,2]
[333515422,1722225033179,-14685.38400422,0.00010899,2]
[333515423,1722225033189,-14685.38400422,0.00010899,2]
[333515424,1722225033202,-14685.38400422,0.00010899,2]
[333515425,1722225033211,-14685.38400422,0.00010899,2]
[333515426,1722225033220,-14685.38400422,0.00010899,2]
[333515427,1722225033230,-14685.38400422,0.00010899,2]
[333515428,1722225033239,-14685.38400422,0.00010899,2]
[333515429,1722225033248,-3000.0,0.00010899,2]
[333515430,1722225033257,-161.43164483,0.00010899,2]
[333515431,1722225033266,-769.2260691,0.000109,2]
[333515432,1722225033275,-1569.02551044,0.000109,2]
[333515433,1722225033285,-5061.7674,0.000109,2]
[333515434,1722225033295,-45926.72343243,0.000109,2]
[333515435,1722225033304,-14685.38400422,0.000109,2]
[333515436,1722225033313,-275.962,0.000109,2]
[333515437,1722225033323,-1964.0,0.000109,2]
[333515438,1722225033332,-784.0,0.00010921,2]
[333515439,1722225033342,-500.0,0.00010958,2]
[333515440,1722225033351,-500.0,0.00010958,2]
[333515441,1722225033360,-500.0,0.00010958,2]
[333515442,1722225033370,-507.81787106,0.00010958,2]
[333515443,1722225033379,-500.0,0.00010958,2]
[333515444,1722225033388,-500.0,0.00010958,2]
[333515445,1722225033397,-500.0,0.00010958,2]
[333515446,1722225033407,-536.43871003,0.00010958,2]
[333515447,1722225033417,-500.0,0.00010958,2]
[333515448,1722225033427,-281.13182846,0.00010958,2]
[333515449,1722225033436,-529.30921772,0.00010958,2]
[333515450,1722225033448,-625.54199733,0.00010958,2]
[333515451,1722225033457,-500.0,0.00010958,2]
[333515452,1722225033467,-500.0,0.00010958,2]
[333515453,1722225033476,-500.0,0.00010958,2]
[333515454,1722225033486,-500.0,0.00010958,2]
[333515455,1722225033496,-500.0,0.00010958,2]
[333515456,1722225033506,-500.0,0.00010958,2]
[333515457,1722225033516,-293.49,0.00010958,2]
[333515458,1722225033528,-432.74116241,0.00010958,2]
[333515459,1722225033538,-500.0,0.00010958,2]
[333515460,1722225033547,-187.04000001,0.00010958,2]
[333515461,1722225033556,-500.0,0.00010958,2]
[333515462,1722225033567,-500.0,0.00010958,2]
[333515463,1722225033576,-648.12265781,0.00010958,2]
[333515464,1722225033585,-500.0,0.00010958,2]
[333515465,1722225033594,-500.0,0.00010958,2]
[333515466,1722225033605,-500.0,0.00010958,2]
[333515467,1722225033616,-500.0,0.00010958,2]
[333515468,1722225033625,-542.36111735,0.00010958,2]
[333515469,1722225033635,-500.0,0.00010958,2]
[333515470,1722225033644,-500.0,0.00010958,2]
[333515471,1722225033654,-500.0,0.00010958,2]
[333515472,1722225033664,-500.0,0.00010958,2]
[333515473,1722225033673,-500.0,0.00010958,2]
[333515474,1722225033682,-500.0,0.00010958,2]
[333515475,1722225033692,-500.0,0.00010958,2]
[333515476,1722225033703,-540.30041682,0.00010958,2]
[333515477,1722225033712,-500.0,0.00010958,2]
[333515478,1722225033721,-500.0,0.00010958,2]
[333515479,1722225033731,-269.05245904,0.00010958,2]
[333515480,1722225033741,-500.0,0.00010958,2]
[333515481,1722225033750,-500.0,0.00010958,2]
[333515482,1722225033759,-158.95524663,0.00010958,2]
[333515483,1722225033769,-500.0,0.00010958,2]
[333515484,1722225033778,-500.0,0.00010958,2]
[333515485,1722225033788,-500.0,0.00010958,2]
[333515486,1722225033797,-582.0200653,0.00010958,2]
[333515487,1722225033807,-500.0,0.00010958,2]
[333515488,1722225033816,-498.19068912,0.00010958,2]
[333515489,1722225033825,-500.0,0.00010958,2]
[333515490,1722225033835,-500.0,0.00010958,2]
[333515491,1722225033844,-500.0,0.00010958,2]
[333515492,1722225033853,-420.22,0.00010958,2]
[333515493,1722225033863,-504.33910284,0.00010958,2]
[333515494,1722225033872,-640.38026987,0.00010958,2]
[333515495,1722225033881,-504.51285852,0.00010958,2]
[333515496,1722225033890,-282.59069397,0.00010958,2]
[333515497,1722225033899,-649.55870929,0.00010958,2]
[333515498,1722225033909,-500.0,0.00010958,2]
[333515499,1722225033918,-500.0,0.00010958,2]
[333515500,1722225033927,-466.75967354,0.00010958,2]
[333515501,1722225033936,-500.0,0.00010958,2]
[333515502,1722225033948,-500.0,0.00010958,2]
[333515503,1722225033960,-549.05715338,0.00010958,2]
[333515504,1722225033970,-375.63054574,0.00010958,2]
[333515505,1722225033979,-505.44468241,0.00010958,2]
[333515506,1722225033988,-535.63322948,0.00010958,2]
[333515507,1722225033997,-170.19118454,0.00010958,2]
[333515508,1722225034007,-216.17123157,0.00010958,2]
[333515509,1722225034016,-514.11763177,0.00010958,2]
[333515510,1722225034025,-500.0,0.00010958,2]
[333515511,1722225034035,-500.0,0.00010958,2]
[333515512,1722225034044,-512.44808973,0.00010958,2]
[333515513,1722225034053,-500.0,0.00010958,2]
[333515514,1722225034063,-508.27955073,0.00010958,2]
[333515515,1722225034072,-556.56886658,0.00010958,2]
[333515516,1722225034082,-529.51142985,0.00010958,2]
[333515517,1722225034091,-500.0,0.00010958,2]
[333515518,1722225034101,-510.53234968,0.00010958,2]
[333515519,1722225034110,-525.33875271,0.00010958,2]
[333515520,1722225034119,-220.91442829,0.00010958,2]
[333515521,1722225034128,-500.0,0.00010958,2]
[333515522,1722225034138,-247.42246694,0.00010958,2]
[333515523,1722225034147,-508.37706197,0.00010958,2]
[333515524,1722225034156,-475.1629,0.00010958,2]
[333515525,1722225034165,-500.0,0.00010958,2]
[333515526,1722225034174,-500.0,0.00010958,2]
[333515527,1722225034183,-160.50730852,0.00010958,2]
[333515528,1722225034192,-500.0,0.00010958,2]
[333515529,1722225034204,-500.0,0.00010958,2]
[333515530,1722225034212,-504.0674873,0.00010958,2]
[333515531,1722225034221,-500.0,0.00010958,2]
[333515532,1722225034229,-501.66646837,0.00010958,2]
[333515533,1722225034238,-500.0,0.00010958,2]
[333515534,1722225034247,-500.0,0.00010958,2]
[333515535,1722225034256,-500.0,0.00010958,2]
[333515536,1722225034265,-500.0,0.00010958,2]
[333515537,1722225034274,-165.91987929,0.00010958,2]
[333515538,1722225034284,-502.16460411,0.00010958,2]
[333515539,1722225034293,-151.52869406,0.00010958,2]
[333515540,1722225034302,-500.0,0.00010958,2]
[333515541,1722225034311,-500.0,0.00010958,2]
[333515542,1722225034320,-501.25271308,0.00010958,2]
[333515543,1722225034329,-510.67372611,0.00010958,2]
[333515544,1722225034338,-507.3518176,0.00010958,2]
[333515545,1722225034347,-510.02278778,0.00010958,2]
[333515546,1722225034356,-286.43624388,0.00010958,2]
[333515547,1722225034366,-369.78237491,0.00010958,2]
[333515548,1722225034375,-500.0,0.00010958,2]
[333515549,1722225034383,-500.0,0.00010958,2]
[333515550,1722225034393,-500.0,0.00010958,2]
[333515551,1722225034402,-500.0,0.00010958,2]
[333515552,1722225034411,-504.64766314,0.00010958,2]
[333515553,1722225034420,-1043.64,0.00010958,2]
[333515554,1722225034429,-1043.64,0.00010958,2]
[333515555,1722225034438,-1043.64,0.00010958,2]
[333515556,1722225034448,-387.04257124,0.00010958,2]
[333515557,1722225034457,-629.600025,0.00010958,2]
[333515558,1722225034467,-450.39229832,0.00010958,2]
[333515559,1722225034477,-500.0,0.00010958,2]
[333515560,1722225034486,-500.0,0.00010958,2]
[333515561,1722225034495,-501.59053121,0.00010958,2]
[333515562,1722225034505,-500.0,0.00010958,2]
[333515563,1722225034514,-500.0,0.00010958,2]
[333515564,1722225034524,-504.84967396,0.00010958,2]
[333515565,1722225034536,-500.0,0.00010958,2]
[333515566,1722225034545,-500.0,0.00010958,2]
[333515567,1722225034554,-500.0,0.00010958,2]
[333515568,1722225034563,-500.0,0.00010958,2]
[333515569,1722225034575,-500.0,0.00010958,2]
[333515570,1722225034584,-639.58328646,0.00010958,2]
[333515571,1722225034593,-500.0,0.00010958,2]
[333515572,1722225034602,-500.0,0.00010958,2]
[333515573,1722225034613,-456.22567028,0.00010958,2]
[333515574,1722225034622,-500.0,0.00010958,2]
[333515575,1722225034631,-500.0,0.00010958,2]
[333515576,1722225034641,-500.0,0.00010958,2]
[333515577,1722225034650,-500.0,0.00010958,2]
[333515578,1722225034658,-500.0,0.00010958,2]
[333515579,1722225034667,-500.0,0.00010958,2]
[333515580,1722225034677,-500.0,0.00010958,2]
[333515581,1722225034686,-500.0,0.00010958,2]
[333515582,1722225034697,-500.0,0.00010958,2]
[333515583,1722225034708,-577.90535444,0.00010958,2]
[333515584,1722225034717,-500.0,0.00010958,2]
[333515585,1722225034726,-520.42991473,0.00010958,2]
[333515586,1722225034735,-341.18752123,0.00010958,2]
[333515587,1722225034745,-512.44261999,0.00010958,2]
[333515588,1722225034754,-505.04438407,0.00010958,2]
[333515589,1722225034763,-500.0,0.00010958,2]
[333515590,1722225034773,-499.99999998,0.00010958,2]
[333515591,1722225034782,-500.0,0.00010958,2]
[333515592,1722225034791,-500.0,0.00010958,2]
[333515593,1722225034801,-506.80019814,0.00010958,2]
[333515594,1722225034809,-500.0,0.00010958,2]
[333515595,1722225034818,-500.0,0.00010958,2]
[333515596,1722225034828,-500.0,0.00010958,2]
[333515597,1722225034837,-500.0,0.00010958,2]
[333515598,1722225034846,-500.0,0.00010958,2]
[333515599,1722225034855,-500.0,0.00010958,2]
[333515600,1722225034864,-500.0,0.00010958,2]
[333515601,1722225034873,-242.49348213,0.00010958,2]
[333515602,1722225034883,-500.0,0.00010958,2]
[333515603,1722225034893,-531.58402674,0.00010958,2]
[333515604,1722225034902,-500.0,0.00010958,2]
[333515605,1722225034911,-500.0,0.00010958,2]
[333515606,1722225034920,-500.0,0.00010958,2]
[333515607,1722225034929,-500.0,0.00010958,2]
[333515608,1722225034940,-500.0,0.00010958,2]
[333515609,1722225034950,-500.0,0.00010958,2]
[333515610,1722225034960,-500.0,0.00010958,2]
[333515611,1722225034970,-500.0,0.00010958,2]
[333515612,1722225034980,-500.0,0.00010958,2]
[333515613,1722225034989,-503.34421083,0.00010958,2]
[333515614,1722225034999,-500.0,0.00010958,2]
[333515615,1722225035008,-638.27276027,0.00010958,2]
[333515616,1722225035017,-245.10894509,0.00010958,2]
[333515617,1722225035026,-500.0,0.00010958,2]
[333515618,1722225035035,-500.0,0.00010958,2]
[333515619,1722225035045,-189.08907558,0.00010958,2]
[333515620,1722225035054,-500.0,0.00010958,2]
[333515621,1722225035063,-222.68801984,0.00010958,2]
[333515622,1722225035072,-500.0,0.00010958,2]
[333515623,1722225035081,-500.0,0.00010958,2]
[333515624,1722225035090,-194.85526745,0.00010958,2]
[333515625,1722225035099,-500.0,0.00010958,2]
[333515626,1722225035109,-374.89414854,0.00010958,2]
[333515627,1722225035118,-548.12675557,0.00010958,2]
[333515628,1722225035127,-500.0,0.00010958,2]
[333515629,1722225035136,-500.0,0.00010958,2]
[333515630,1722225035146,-500.0,0.00010958,2]
[333515631,1722225035155,-500.0,0.00010958,2]
[333515632,1722225035165,-500.0,0.00010958,2]
[333515633,1722225035174,-500.0,0.00010958,2]
[333515634,1722225035184,-500.0,0.00010958,2]
[333515635,1722225035193,-500.0,0.00010958,2]
[333515636,1722225035207,-500.0,0.00010958,2]
[333515637,1722225035216,-500.0,0.00010958,2]
[333515638,1722225035225,-500.0,0.00010958,2]
[333515639,1722225035234,-500.0,0.00010958,2]
[333515640,1722225035243,-500.0,0.00010958,2]
[333515641,1722225035252,-500.0,0.00010958,2]
[333515642,1722225035261,-500.0,0.00010958,2]
[333515643,1722225035270,-500.0,0.00010958,2]
[333515644,1722225035279,-500.0,0.00010958,2]
[333515645,1722225035288,-500.0,0.00010958,2]
[333515646,1722225035298,-500.0,0.00010958,2]
[333515647,1722225035306,-304.83493281,0.00010958,2]
[333515648,1722225035315,-500.0,0.00010958,2]
[333515649,1722225035324,-326.30482911,0.00010958,2]
[333515650,1722225035333,-158.43331074,0.00010958,2]
[333515651,1722225035343,-343.91493527,0.00010958,2]
[333515652,1722225035352,-500.0,0.00010958,2]
[333515653,1722225035362,-500.0,0.00010958,2]
[333515654,1722225035371,-500.0,0.00010958,2]
[333515655,1722225035380,-500.0,0.00010958,2]
[333515656,1722225035389,-500.0,0.00010958,2]
[333515657,1722225035398,-501.47607629,0.00010958,2]
[333515658,1722225035407,-500.0,0.00010958,2]
[333515659,1722225035416,-501.88971205,0.00010958,2]
[333515660,1722225035425,-500.0,0.00010958,2]
[333515661,1722225035434,-500.0,0.00010958,2]
[333515662,1722225035443,-500.0,0.00010958,2]
[333515663,1722225035456,-500.0,0.00010958,2]
[333515664,1722225035466,-500.0,0.00010958,2]
[333515665,1722225035475,-500.0,0.00010958,2]
[333515666,1722225035484,-500.0,0.00010958,2]
[333515667,1722225035493,-500.0,0.00010958,2]
[333515668,1722225035502,-500.0,0.00010958,2]
[333515669,1722225035512,-500.0,0.00010958,2]
[333515670,1722225035525,-500.0,0.00010958,2]
[333515671,1722225035535,-310.83548499,0.00010958,2]
[333515672,1722225035544,-500.0,0.00010958,2]
[333515673,1722225035553,-500.0,0.00010958,2]
[333515674,1722225035563,-500.0,0.00010958,2]
[333515675,1722225035572,-589.31101113,0.00010958,2]
[333515676,1722225035581,-500.0,0.00010958,2]
[333515677,1722225035590,-500.0,0.00010958,2]
[333515678,1722225035600,-500.0,0.00010958,2]
[333515679,1722225035610,-500.0,0.00010958,2]